fUST/lending_fUST_20250311
["ID","MTS","AMOUNT","RATE_DAILY","PERIOD"]
[355897498,1741695043124,-500.0,0.0003315,7]
[355897499,1741695043134,-500.0,0.0003315,7]
[355897500,1741695043143,-500.0,0.0003315,7]
[355897501,1741695043153,-500.0,0.0003315,7]
[355897502,1741695043163,-767.86,0.0003315,7]
[355897503,1741695043173,-500.0,0.0003315,7]
[355897504,1741695043183,-942.67,0.0003315,7]
[355897505,1741695043194,-636.21,0.0003315,7]
[355897506,1741695043205,-500.0,0.0003315,7]
[355897507,1741695043214,-151.0,0.0003315,14]
[355897508,1741695043224,-500.0,0.0003315,7]
[355897509,1741695043234,-201.918242,0.0003315,14]
[355897510,1741695043244,-151.0,0.0003315,14]
[355897511,1741695043253,-1064.79,0.0003315,7]
[355897512,1741695043263,-677.39,0.0003315,7]
[355897513,1741695043274,-500.0,0.0003315,7]
[355897514,1741695043284,-500.0,0.0003315,7]
[355897515,1741695043293,-1153.94,0.0003315,7]
[355897516,1741695043303,-151.0,0.0003315,14]
[355897517,1741695043312,-151.0,0.0003315,14]
[355897518,1741695043323,-500.0,0.0003315,7]
[355897519,1741695043332,-500.0,0.0003315,7]
[355897520,1741695043342,-500.0,0.0003315,7]
[355897521,1741695043351,-151.0,0.0003315,14]
[355897522,1741695043361,-151.0,0.0003315,14]
[355897523,1741695043370,-18956.44,0.0003315,7]
[355897524,1741695043380,-500.0,0.0003315,7]
[355897525,1741695043389,-500.0,0.0003315,7]
[355897526,1741695043399,-500.0,0.0003315,7]
[355897527,1741695043409,-500.0,0.0003315,7]
[355897528,1741695043419,-649.68,0.0003315,7]
[355897529,1741695043429,-151.0,0.0003315,14]
[355897530,1741695043439,-260.802116,0.0003315,14]
[355897531,1741695043449,-500.0,0.0003315,7]
[355897532,1741695043460,-706.44,0.0003315,3]
[355897533,1741695043470,-686.45,0.0003315,7]
[355897534,1741695043481,-803.3,0.0003315,7]
[355897535,1741695043491,-756.98,0.0003315,7]
[355897536,1741695043505,-500.0,0.0003315,7]
[355897537,1741695043517,-580.2807833,0.0003315,7]
[355897538,1741695043527,-500.0,0.0003315,7]
[355897539,1741695043536,-500.0,0.0003315,7]
[355897540,1741695043546,-882.99,0.0003315,7]
[355897541,1741695043556,-564.47,0.0003315,7]
[355897542,1741695043565,-5057.55,0.0003315,7]
[355897543,1741695043576,-593.40000799,0.0003315,7]
[355897544,1741695043586,-151.0,0.0003315,14]
[355897545,1741695043596,-815.09,0.0003315,7]
[355897546,1741695043606,-1673.37,0.0003315,7]
[355897547,1741695043616,-500.0,0.0003315,7]
[355897548,1741695043625,-1408.71,0.0003315,7]
[355897549,1741695043635,-1305.95,0.0003315,7]
[355897550,1741695043645,-664.03,0.0003315,7]
[355897551,1741695043656,-500.0,0.0003315,7]
[355897552,1741695043666,-6781.22,0.0003315,7]
[355897553,1741695043677,-926.55,0.0003315,7]
[355897554,1741695043686,-1332.7,0.0003315,7]
[355897555,1741695043696,-1286.83,0.0003315,7]
[355897557,1741695043707,-500.0,0.0003315,7]
[355897559,1741695043716,-500.0,0.0003315,7]
[355897561,1741695043726,-500.0,0.0003315,7]
[355897563,1741695043736,-500.0,0.0003315,7]
[355897565,1741695043746,-736.82,0.0003315,7]
[355897567,1741695043756,-500.0,0.0003315,7]
[355897569,1741695043767,-1393.62,0.0003315,7]
[355897570,1741695043777,-977.22,0.0003315,7]
[355897571,1741695043788,-1381.89,0.0003315,7]
[355897572,1741695043800,-584.74135456,0.0003315,7]
[355897573,1741695043810,-1041.53,0.0003315,7]
[355897574,1741695043820,-169173.3,0.0003315,7]
[355897575,1741695043830,-1239.43,0.0003315,7]
[355897576,1741695043840,-500.0,0.0003315,7]
[355897577,1741695043851,-500.0,0.0003315,7]
[355897578,1741695043860,-500.0,0.0003315,7]
[355897579,1741695043870,-500.0,0.0003315,7]
[355897580,1741695043880,-500.0,0.0003315,7]
[355897581,1741695043889,-500.0,0.0003315,7]
[355897582,1741695043899,-500.0,0.0003315,7]
[355897583,1741695043909,-1257.39,0.0003315,7]
[355897584,1741695043919,-500.0,0.0003315,7]
[355897585,1741695043928,-500.0,0.0003315,7]
[355897586,1741695043938,-500.0,0.0003315,7]
[355897587,1741695043948,-3412.74,0.0003315,7]
[355897588,1741695043957,-500.0,0.0003315,7]
[355897589,1741695043968,-764.76,0.0003315,7]
[355897590,1741695043978,-1042.92,0.0003315,7]
[355897591,1741695043988,-516.26,0.0003315,7]
[355897592,1741695043997,-1047.73,0.0003315,7]
[355897593,1741695044007,-500.0,0.0003315,7]
[355897594,1741695044017,-1059.9,0.0003315,7]
[355897595,1741695044027,-622.95,0.0003315,7]
[355897596,1741695044037,-500.0,0.0003315,7]
[355897597,1741695044047,-3013.85,0.0003315,7]
[355897598,1741695044056,-500.0,0.0003315,7]
[355897599,1741695044066,-151.0,0.0003315,14]
[355897600,1741695044076,-500.0,0.0003315,7]
[355897601,1741695044085,-500.0,0.0003315,7]
[355897602,1741695044095,-667.39,0.0003315,7]
[355897603,1741695044105,-509.65,0.0003315,7]
[355897604,1741695044114,-670.74,0.0003315,7]
[355897605,1741695044124,-1582.72,0.0003315,7]
[355897606,1741695044133,-5626.47,0.0003315,7]
[355897607,1741695044143,-500.0,0.0003315,7]
[355897608,1741695044152,-500.0,0.0003315,7]
[355897609,1741695044162,-500.0,0.0003315,7]
[355897610,1741695044171,-603.07,0.0003315,7]
[355897611,1741695044180,-564.17,0.0003315,7]
[355897612,1741695044195,-843.1,0.0003315,7]
[355897613,1741695044205,-581.91,0.0003315,7]
[355897614,1741695044215,-187.40905431,0.0003315,7]
[355897615,1741695044224,-500.0,0.0003315,7]
[355897616,1741695044235,-3153.02,0.0003315,7]
[355897617,1741695044246,-500.0,0.0003315,7]
[355897618,1741695044255,-6141.32,0.0003315,7]
[355897619,1741695044265,-500.0,0.0003315,7]
[355897620,1741695044276,-500.0,0.0003315,7]
[355897621,1741695044286,-500.0,0.0003315,7]
[355897622,1741695044296,-566.62450841,0.0003315,7]
[355897623,1741695044306,-500.0,0.0003315,7]
[355897624,1741695044316,-4009.94,0.0003315,7]
[355897625,1741695044325,-500.0,0.0003315,7]
[355897626,1741695044335,-551.01776873,0.0003315,7]
[355897627,1741695044344,-3615.33,0.0003315,7]
[355897628,1741695044354,-500.0,0.0003315,7]
[355897629,1741695044364,-769.89,0.0003315,7]
[355897630,1741695044374,-1319.72,0.0003315,7]
[355897631,1741695044384,-500.0,0.0003315,7]
[355897632,1741695044394,-541.90369091,0.0003315,7]
[355897633,1741695044404,-500.0,0.0003315,7]
[355897634,1741695044414,-1549.54,0.0003315,7]
[355897635,1741695044424,-1201.25,0.0003315,7]
[355897636,1741695044433,-500.0,0.0003315,7]
[355897637,1741695044443,-540.93,0.0003315,7]
[355897638,1741695044453,-1267.56,0.0003315,7]
[355897639,1741695044463,-1271.42,0.0003315,7]
[355897640,1741695044472,-736.19,0.0003315,7]
[355897641,1741695044482,-500.0,0.0003315,7]
[355897642,1741695044492,-7024.08,0.0003315,7]
[355897643,1741695044502,-993.56,0.0003315,7]
[355897644,1741695044511,-732.5,0.0003315,7]
[355897645,1741695044522,-541.7,0.0003315,7]
[355897646,1741695044531,-980.96,0.0003315,7]
[355897647,1741695044541,-500.0,0.0003315,7]
[355897648,1741695044551,-1275.08,0.0003315,7]
[355897649,1741695044560,-177.83213679,0.0003315,7]
[355897650,1741695044570,-986.09,0.0003315,7]
[355897651,1741695044580,-770.93,0.0003315,7]
[355897652,1741695044590,-988.89,0.0003315,7]
[355897653,1741695044600,-1935.18,0.0003315,7]
[355897654,1741695044610,-500.0,0.0003315,7]
[355897655,1741695044619,-1374.06,0.0003315,7]
[355897656,1741695044629,-500.0,0.0003315,7]
[355897657,1741695044639,-500.0,0.0003315,7]
[355897658,1741695044648,-500.0,0.0003315,7]
[355897659,1741695044658,-745.04,0.0003315,7]
[355897660,1741695044668,-5601.81,0.0003315,7]
[355897661,1741695044678,-553.71942341,0.0003315,7]
[355897662,1741695044688,-1155.41,0.0003315,7]
[355897663,1741695044698,-500.0,0.0003315,7]
[355897664,1741695044708,-829.17,0.0003315,7]
[355897665,1741695044719,-500.0,0.0003315,7]
[355897666,1741695044729,-962.34,0.0003315,7]
[355897667,1741695044739,-733.52,0.0003315,7]
[355897668,1741695044749,-639.39,0.0003315,7]
[355897669,1741695044759,-500.0,0.0003315,7]
[355897670,1741695044769,-1089.45,0.0003315,7]
[355897671,1741695044778,-5880.08,0.0003315,7]
[355897672,1741695044787,-3049.91,0.0003315,7]
[355897673,1741695044797,-811.41,0.0003315,7]
[355897674,1741695044807,-784.07,0.0003315,7]
[355897675,1741695044816,-500.0,0.0003315,7]
[355897676,1741695044825,-500.0,0.0003315,7]
[355897677,1741695044835,-500.0,0.0003315,7]
[355897678,1741695044844,-500.0,0.0003315,7]
[355897679,1741695044854,-2787.16,0.0003315,7]
[355897680,1741695044864,-500.0,0.0003315,7]
[355897681,1741695044873,-557.02977663,0.0003315,7]
[355897682,1741695044884,-555.22,0.0003315,7]
[355897683,1741695044894,-500.0,0.0003315,7]
[355897684,1741695044904,-1232.85,0.0003315,7]
[355897685,1741695044913,-500.0,0.0003315,7]
[355897686,1741695044923,-12621.59,0.0003315,2]
[355897687,1741695044933,-500.0,0.0003315,7]
[355897688,1741695044943,-750.56,0.0003315,7]
[355897689,1741695044952,-500.0,0.0003315,7]
[355897690,1741695044962,-500.0,0.0003315,7]
[355897691,1741695044972,-500.0,0.0003315,7]
[355897692,1741695044982,-500.0,0.0003315,7]
[355897693,1741695044993,-2932.36,0.0003315,7]
[355897694,1741695045003,-500.0,0.0003315,7]
[355897695,1741695045014,-502.66423407,0.0003315,7]
[355897696,1741695045024,-500.0,0.0003315,7]
[355897697,1741695045033,-500.0,0.0003315,7]
[355897698,1741695045044,-500.0,0.0003315,7]
[355897699,1741695045054,-787.55,0.0003315,7]
[355897700,1741695045064,-500.13,0.0003315,2]
[355897701,1741695045073,-1927.93,0.0003315,7]
[355897702,1741695045083,-880.5,0.0003315,7]
[355897703,1741695045092,-954.03,0.0003315,7]
[355897704,1741695045103,-2054.61,0.0003315,7]
[355897705,1741695045112,-500.0,0.0003315,7]
[355897706,1741695045121,-500.0,0.0003315,2]
[355897707,1741695045131,-585.71540311,0.0003315,7]
[355897708,1741695045140,-249.0743652,0.0003315,7]
[355897709,1741695045150,-929.86,0.0003315,7]
[355897710,1741695045160,-907.67,0.0003315,7]
[355897711,1741695045170,-500.0,0.0003315,7]
[355897712,1741695045180,-301.07802956,0.00033173,5]
[355897713,1741695045189,-274.31055979,0.00033173,5]
[355897714,1741695045204,-500.0,0.00033173,5]
[355897715,1741695045214,-500.0,0.00033173,5]
[355897716,1741695045224,-500.0,0.00033173,5]
[355897717,1741695045235,-500.0,0.00033173,5]
[355897718,1741695045244,-418.25750934,0.00033173,5]
[355897719,1741695045254,-371.66504729,0.00033173,5]
[355897720,1741695045421,-500.0,0.00033173,5]
[355897721,1741695045432,-500.0,0.00033173,5]
[355897722,1741695045441,-500.0,0.00033173,5]
[355897723,1741695045451,-500.0,0.00033173,5]
[355897724,1741695045460,-503.70521121,0.00033173,5]
[355897725,1741695045470,-500.0,0.00033173,5]
[355897726,1741695045480,-500.0,0.00033173,5]
[355897727,1741695045489,-500.0,0.00033173,5]
[355897728,1741695045499,-500.0,0.00033173,5]
[355897729,1741695045508,-500.0,0.00033173,2]
[355897730,1741695045517,-500.0,0.00033173,5]
[355897731,1741695045527,-500.0,0.00033173,5]
[355897732,1741695045536,-480.63167219,0.00033173,5]
[355897733,1741695045546,-500.0,0.00033173,5]
[355897734,1741695045556,-500.0,0.00033173,5]
[355897735,1741695045565,-218.98207517,0.00033173,5]
[355897736,1741695045575,-500.0,0.00033173,5]
[355897737,1741695045585,-500.0,0.00033173,5]
[355897738,1741695045595,-154.1123787,0.00033173,5]
[355897739,1741695045605,-500.0,0.00033173,5]
[355897740,1741695045615,-500.0,0.00033173,5]
[355897741,1741695045625,-500.0,0.00033173,5]
[355897742,1741695045635,-160.0,0.00033173,2]
[355897743,1741695045644,-500.0,0.00033173,5]
[355897744,1741695045654,-501.70277733,0.00033173,5]
[355897745,1741695045664,-500.0,0.00033173,2]
[355897746,1741695045674,-500.0,0.00033173,5]
[355897747,1741695045684,-158.68167274,0.00033178,30]
[355897748,1741695045694,-12013.10758539,0.00033324,2]
[355897749,1741695045703,-780.0,0.0003342,2]
[355897750,1741695045713,-151.0,0.00033423,14]
[355897751,1741695045723,-151.0,0.00033423,14]
[355897752,1741695045732,-151.0,0.00033423,14]
[355897753,1741695045743,-151.0,0.00033423,14]
[355897754,1741695045753,-151.0,0.00033423,14]
[355897755,1741695045762,-500.0,0.00033424,7]
[355897756,1741695045773,-500.0,0.00033424,5]
[355897757,1741695045783,-500.0,0.00033424,7]
[355897758,1741695045794,-625.55,0.00033424,7]
[355897759,1741695045804,-500.0,0.00033424,7]
[355897760,1741695045815,-500.0,0.00033424,7]
[355897761,1741695045825,-500.0,0.00033424,7]
[355897762,1741695045834,-673.91,0.00033424,7]
[355897764,1741695045844,-500.0,0.00033424,7]
[355897765,1741695045854,-569.34455607,0.00033424,7]
[355897766,1741695045865,-500.0,0.00033424,7]
[355897767,1741695045874,-500.0,0.00033424,7]
[355897768,1741695045884,-500.0,0.00033424,7]
[355897769,1741695045894,-500.0,0.00033424,7]
[355897770,1741695045904,-500.0,0.00033424,7]
[355897771,1741695045914,-500.0,0.00033424,7]
[355897772,1741695045925,-500.0,0.00033424,7]
[355897773,1741695045935,-500.0,0.00033424,7]
[355897774,1741695045946,-500.0,0.00033424,7]
[355897775,1741695045956,-500.0,0.00033424,7]
[355897776,1741695045965,-500.0,0.00033424,7]
[355897777,1741695045976,-500.0,0.00033424,7]
[355897778,1741695045987,-500.0,0.00033424,7]
[355897779,1741695045998,-702.78,0.00033424,7]
[355897780,1741695046008,-500.0,0.00033424,7]
[355897781,1741695046018,-500.0,0.00033424,7]
[355897782,1741695046032,-500.0,0.00033424,7]
[355897783,1741695046043,-557.89,0.00033424,7]
[355897785,1741695046055,-509.10951589,0.00033424,7]
[355897786,1741695046065,-521.71,0.00033424,7]
[355897787,1741695046076,-500.0,0.00033424,7]
[355897788,1741695046087,-500.0,0.00033424,7]
[355897789,1741695046098,-500.0,0.00033424,7]
[355897791,1741695046110,-908.05,0.00033424,7]
[355897792,1741695046120,-500.0,0.00033424,7]
[355897793,1741695046131,-500.0,0.00033424,7]
[355897794,1741695046141,-865.89,0.00033424,7]
[355897795,1741695046151,-500.0,0.00033424,7]
[355897796,1741695046162,-500.0,0.00033424,7]
[355897797,1741695046172,-500.0,0.00033424,7]
[355897798,1741695046183,-500.0,0.00033424,7]
[355897799,1741695046196,-500.0,0.00033424,7]
[355897800,1741695046207,-500.0,0.00033424,7]
[355897801,1741695046217,-754.14,0.00033424,7]
[355897802,1741695046227,-1673.35,0.00033424,7]
[355897803,1741695046239,-500.0,0.00033424,7]
[355897804,1741695046249,-500.0,0.00033424,7]
[355897805,1741695046260,-500.0,0.00033424,7]
[355897807,1741695046272,-677.07,0.00033424,7]
[355897808,1741695046284,-500.0,0.00033424,7]
[355897809,1741695046295,-500.0,0.00033424,7]
[355897810,1741695046305,-151.0,0.00033424,14]
[355897811,1741695046315,-160.183128,0.00033424,14]
[355897812,1741695046326,-500.0,0.00033424,7]
[355897813,1741695046335,-500.0,0.00033424,7]
[355897814,1741695046346,-1023.55,0.00033424,7]
[355897815,1741695046355,-500.0,0.00033424,7]
[355897816,1741695046366,-500.0,0.00033424,7]
[355897817,1741695046376,-1082.92,0.00033424,7]
[355897818,1741695046386,-571.27422004,0.00033424,7]
[355897819,1741695046397,-500.0,0.00033424,7]
[355897820,1741695046408,-873.54,0.00033424,7]
[355897821,1741695046419,-500.0,0.00033424,7]
[355897822,1741695046430,-519.6,0.00033424,7]
[355897823,1741695046440,-500.0,0.00033424,7]
[355897824,1741695046450,-500.0,0.00033424,7]
[355897825,1741695046460,-500.0,0.00033424,7]
[355897826,1741695046470,-500.0,0.00033424,7]
[355897827,1741695046480,-500.0,0.00033424,2]
[355897828,1741695046490,-336.412385,0.00033424,14]
[355897829,1741695046500,-336.412385,0.00033424,14]
[355897830,1741695046510,-500.0,0.00033424,7]
[355897831,1741695046521,-500.0,0.00033424,2]
[355897832,1741695046531,-336.412385,0.00033424,14]
[355897833,1741695046542,-336.412385,0.00033424,14]
[355897834,1741695046551,-500.0,0.00033424,7]
[355897835,1741695046560,-1095.93,0.00033424,7]
[355897836,1741695046570,-695.17,0.00033424,7]
[355897837,1741695046579,-614.38,0.00033424,7]
[355897838,1741695046589,-500.0,0.00033424,7]
[355897839,1741695046599,-500.0,0.00033424,7]
[355897840,1741695046609,-500.0,0.00033424,7]
[355897841,1741695046619,-500.0,0.00033424,2]
[355897842,1741695046629,-551.27,0.00033424,7]
[355897843,1741695046640,-1330.09,0.00033424,7]
[355897844,1741695046649,-500.0,0.00033424,7]
[355897845,1741695046659,-548.7994063,0.00033424,7]
[355897846,1741695046669,-931.03,0.00033424,7]
[355897847,1741695046679,-500.0,0.00033424,7]
[355897848,1741695046689,-500.0,0.00033424,7]
[355897849,1741695046699,-151.0,0.00033424,14]
[355897850,1741695046708,-500.0,0.00033424,7]
[355897851,1741695046718,-591.82,0.00033424,7]
[355897852,1741695046729,-500.0,0.00033424,7]
[355897853,1741695046739,-500.0,0.00033424,7]
[355897854,1741695046749,-500.0,0.00033424,7]
[355897855,1741695046759,-500.0,0.00033424,7]
[355897856,1741695046768,-514.37455184,0.00033424,7]
[355897857,1741695046779,-933.31,0.00033424,7]
[355897858,1741695046788,-795.07,0.00033424,7]
[355897859,1741695046798,-500.0,0.00033424,7]
[355897860,1741695046808,-500.0,0.00033424,7]
[355897861,1741695046818,-617.03,0.00033424,7]
[355897862,1741695046828,-1018.72,0.00033424,7]
[355897863,1741695046838,-500.0,0.00033424,7]
[355897864,1741695046848,-500.0,0.00033424,7]
[355897865,1741695046857,-500.0,0.00033424,2]
[355897866,1741695046867,-908.92,0.00033424,7]
[355897867,1741695046877,-1737.97,0.00033424,7]
[355897868,1741695046886,-500.0,0.00033424,7]
[355897869,1741695046896,-826.41,0.00033424,7]
[355897870,1741695046905,-804.08,0.00033424,7]
[355897871,1741695046915,-1673.2,0.00033424,7]
[355897872,1741695046925,-500.0,0.00033424,7]
[355897873,1741695046936,-500.0,0.00033424,7]
[355897874,1741695046946,-779.12,0.00033424,7]
[355897875,1741695046955,-796.75,0.00033424,7]
[355897876,1741695046965,-500.0,0.00033424,7]
[355897877,1741695046975,-1274.5,0.00033424,7]
[355897878,1741695046985,-500.0,0.00033424,7]
[355897879,1741695046994,-500.0,0.00033424,7]
[355897880,1741695047004,-500.0,0.00033424,7]
[355897881,1741695047014,-500.0,0.00033424,7]
[355897882,1741695047025,-851.15,0.00033424,7]
[355897883,1741695047035,-500.0,0.00033424,7]
[355897884,1741695047045,-520.34007501,0.00033424,7]
[355897885,1741695047055,-500.0,0.00033424,7]
[355897886,1741695047066,-500.0,0.00033424,7]
[355897887,1741695047075,-1003.93,0.00033424,7]
[355897888,1741695047085,-765.82,0.00033424,7]
[355897889,1741695047094,-637.49,0.00033424,7]
[355897890,1741695047104,-151.0,0.00033424,14]
[355897891,1741695047114,-151.0,0.00033424,14]
[355897892,1741695047124,-2150.15,0.00033424,7]
[355897893,1741695047134,-338.73443445,0.00033424,7]
[355897894,1741695047143,-500.0,0.00033424,7]
[355897895,1741695047152,-592.90694377,0.00033424,7]
[355897896,1741695047162,-2766.58,0.00033424,7]
[355897897,1741695047172,-500.0,0.00033424,7]
[355897898,1741695047182,-568.63091671,0.00033424,7]
[355897899,1741695047194,-500.0,0.00033424,7]
[355897900,1741695047210,-500.0,0.00033424,7]
[355897901,1741695047220,-500.0,0.00033424,7]
[355897902,1741695047231,-750.37,0.00033424,7]
[355897903,1741695047241,-500.0,0.00033424,7]
[355897904,1741695047251,-920.19,0.00033424,7]
[355897905,1741695047261,-500.0,0.00033424,7]
[355897906,1741695047272,-151.0,0.00033424,14]
[355897907,1741695047282,-151.0,0.00033424,14]
[355897908,1741695047292,-724.74,0.00033424,7]
[355897909,1741695047302,-500.0,0.00033424,7]
[355897910,1741695047311,-500.0,0.00033424,7]
[355897911,1741695047320,-500.0,0.00033424,7]
[355897912,1741695047330,-601.37530182,0.00033424,7]
[355897913,1741695047339,-663.78,0.00033424,7]
[355897914,1741695047349,-500.0,0.00033424,7]
[355897915,1741695047358,-500.0,0.00033424,7]
[355897916,1741695047369,-500.0,0.00033424,7]
[355897917,1741695047379,-500.0,0.00033424,7]
[355897918,1741695047389,-500.0,0.00033424,7]
[355897919,1741695047399,-795.7,0.00033424,7]
[355897920,1741695047409,-500.0,0.00033424,7]
[355897921,1741695047420,-1184.43,0.00033424,7]
[355897922,1741695047430,-500.0,0.00033424,7]
[355897923,1741695047440,-821.86,0.00033424,7]
[355897924,1741695047450,-500.0,0.00033424,7]
[355897925,1741695047460,-500.0,0.00033424,7]
[355897926,1741695047472,-500.0,0.00033424,7]
[355897927,1741695047482,-565.85,0.00033424,7]
[355897928,1741695047492,-500.0,0.00033424,7]
[355897929,1741695047502,-500.0,0.00033424,7]
[355897930,1741695047512,-567.38569039,0.00033424,7]
[355897931,1741695047522,-500.0,0.00033424,7]
[355897932,1741695047532,-840.8,0.00033424,7]
[355897933,1741695047542,-500.0,0.00033424,7]
[355897934,1741695047552,-500.0,0.00033424,7]
[355897935,1741695047562,-3149.47,0.00033424,7]
[355897936,1741695047572,-500.0,0.00033424,7]
[355897937,1741695047582,-500.0,0.00033424,7]
[355897938,1741695047592,-1452.45,0.00033424,7]
[355897939,1741695047601,-500.0,0.00033424,7]
[355897940,1741695047611,-500.0,0.00033424,7]
[355897941,1741695047621,-626.6,0.00033424,7]
[355897942,1741695047631,-3187.87,0.00033424,7]
[355897943,1741695047641,-500.0,0.00033424,7]
[355897944,1741695047651,-540.88,0.00033424,7]
[355897945,1741695047663,-500.0,0.00033424,7]
[355897946,1741695047673,-523.7579112,0.00033424,7]
[355897947,1741695047682,-500.0,0.00033424,7]
[355897948,1741695047692,-545.80313685,0.00033424,7]
[355897949,1741695047702,-767.86,0.00033424,7]
[355897950,1741695047712,-500.0,0.00033424,7]
[355897951,1741695047721,-942.67,0.00033424,7]
[355897952,1741695047730,-636.21,0.00033424,7]
[355897953,1741695047740,-500.0,0.00033424,7]
[355897954,1741695047749,-151.0,0.00033424,14]
[355897955,1741695047759,-151.0,0.00033424,14]
[355897956,1741695047769,-500.0,0.00033424,7]
[355897957,1741695047779,-677.39,0.00033424,7]
[355897958,1741695047789,-1064.79,0.00033424,7]
[355897959,1741695047799,-500.0,0.00033424,7]
[355897960,1741695047809,-500.0,0.00033424,7]
[355897961,1741695047818,-1153.94,0.00033424,7]
[355897962,1741695047827,-151.0,0.00033424,14]
[355897963,1741695047837,-500.0,0.00033424,7]
[355897964,1741695047846,-500.0,0.00033424,7]
[355897965,1741695047855,-500.0,0.00033424,7]
[355897966,1741695047865,-151.0,0.00033424,14]
[355897967,1741695047875,-18956.44,0.00033424,7]
[355897968,1741695047885,-500.0,0.00033424,7]
[355897969,1741695047894,-500.0,0.00033424,7]
[355897970,1741695047903,-500.0,0.00033424,7]
[355897971,1741695047913,-500.0,0.00033424,7]
[355897972,1741695047923,-649.68,0.00033424,7]
[355897973,1741695047932,-605.35865668,0.00033424,7]
[355897974,1741695047941,-706.44,0.00033424,3]
[355897975,1741695047951,-686.45,0.00033424,7]
[355897976,1741695047961,-803.3,0.00033424,7]
[355897977,1741695047970,-500.0,0.00033424,7]
[355897978,1741695047980,-756.98,0.00033424,7]
[355897979,1741695047989,-229.96748006,0.00033424,7]
[355897980,1741695047998,-500.0,0.00033424,7]
[355897981,1741695048008,-882.99,0.00033424,7]
[355897982,1741695048017,-564.47,0.00033424,7]
[355897983,1741695048173,-5057.55,0.00033424,7]
[355897984,1741695048184,-815.09,0.00033424,7]
[355897985,1741695048199,-1673.37,0.00033424,7]
[355897986,1741695048209,-500.0,0.00033424,7]
[355897987,1741695048219,-1408.71,0.00033424,7]
[355897988,1741695048231,-1305.95,0.00033424,7]
[355897989,1741695048240,-664.03,0.00033424,7]
[355897990,1741695048250,-500.0,0.00033424,7]
[355897991,1741695048260,-12453.60011709,0.00033424,3]
[355897992,1741695048270,-6781.22,0.00033424,7]
[355897993,1741695048282,-416.66666667,0.00033424,3]
[355897994,1741695048292,-926.55,0.00033424,7]
[355897995,1741695048302,-1332.7,0.00033424,7]
[355897996,1741695048312,-1286.83,0.00033424,7]
[355897997,1741695048322,-500.0,0.00033424,7]
[355897998,1741695048332,-500.0,0.00033424,7]
[355897999,1741695048342,-500.0,0.00033424,7]
[355898000,1741695048352,-584.93813728,0.00033424,7]
[355898001,1741695048362,-736.82,0.00033424,7]
[355898002,1741695048371,-500.0,0.00033424,7]
[355898003,1741695048382,-1393.62,0.00033424,7]
[355898004,1741695048392,-977.22,0.00033424,7]
[355898005,1741695048401,-1381.89,0.00033424,7]
[355898006,1741695048411,-1041.53,0.00033424,7]
[355898007,1741695048421,-169173.3,0.00033424,7]
[355898008,1741695048431,-1239.43,0.00033424,7]